[Event "*** Titled Tuesday Blitz"]
[Site "Chess.com"]
[Date "2020.05.19"]
[Round "8"]
[White "1977Ivan"]
[Black "mishikomchedlishvili"]
[Result "0-1"]
[WhiteElo "2632"]
[BlackElo "2848"]
[TimeControl "180+1"]
[EndTime "13:37:20 PDT"]
[Termination "mishikomchedlishvili won by resignation"]

1. d4 {[%clk 0:02:57.8]} 1... d6 {[%clk 0:02:59.1]} 2. e4 {[%clk 0:02:56.7]}
2... Nf6 {[%clk 0:02:58.7]} 3. Nc3 {[%clk 0:02:56.7]} 3... g6 {[%clk 0:02:58.6]}
4. f4 {[%clk 0:02:56.5]} 4... Bg7 {[%clk 0:02:58.3]} 5. Nf3 {[%clk 0:02:56.9]}
5... O-O {[%clk 0:02:58.3]} 6. e5 {[%clk 0:02:55.3]} 6... dxe5 {[%clk
0:02:55.3]} 7. dxe5 {[%clk 0:02:53.8]} 7... Qxd1+ {[%clk 0:02:54]} 8. Kxd1
{[%clk 0:02:54.1]} 8... Nh5 {[%clk 0:02:53.5]} 9. Bc4 {[%clk 0:02:51]} 9... Bg4
{[%clk 0:02:51.4]} 10. Rf1 {[%clk 0:02:50.7]} 10... Nc6 {[%clk 0:02:48.5]} 11.
Be3 {[%clk 0:02:48.1]} 11... Rad8+ {[%clk 0:02:43.3]} 12. Ke1 {[%clk 0:02:44.6]}
12... Bh6 {[%clk 0:02:05.9]} 13. g3 {[%clk 0:02:40.3]} 13... Ng7 {[%clk
0:01:41.6]} 14. Bd5 {[%clk 0:02:09.5]} 14... Nb4 {[%clk 0:01:32.6]} 15. Be4
{[%clk 0:02:08.1]} 15... Bf5 {[%clk 0:01:32]} 16. Bc5 {[%clk 0:01:52.3]} 16...
Bxe4 {[%clk 0:01:18.6]} 17. Bxb4 {[%clk 0:01:51.6]} 17... Bxf3 {[%clk
0:01:16.9]} 18. Rxf3 {[%clk 0:01:51.2]} 18... Rfe8 {[%clk 0:01:17.2]} 19. Rd1
{[%clk 0:01:48.2]} 19... Nf5 {[%clk 0:01:15]} 20. Rfd3 {[%clk 0:01:47.3]} 20...
Rxd3 {[%clk 0:01:11.5]} 21. Rxd3 {[%clk 0:01:47.3]} 21... b6 {[%clk 0:01:10.1]}
22. Nd5 {[%clk 0:01:38]} 22... c5 {[%clk 0:01:08.6]} 23. Bc3 {[%clk 0:01:37]}
23... Bf8 {[%clk 0:00:43.1]} 24. g4 {[%clk 0:01:26.9]} 24... Ng7 {[%clk
0:00:43.2]} 25. Nc7 {[%clk 0:01:25]} 25... Rb8 {[%clk 0:00:43.2]} 26. a4 {[%clk
0:01:07.9]} 26... Rb7 {[%clk 0:00:40.7]} 27. Nd5 {[%clk 0:01:03.1]} 27... Ne8
{[%clk 0:00:37.8]} 28. f5 {[%clk 0:00:58.1]} 28... Rd7 {[%clk 0:00:27.5]} 29.
Ke2 {[%clk 0:00:49.9]} 29... e6 {[%clk 0:00:27.5]} 30. fxe6 {[%clk 0:00:28]}
30... fxe6 {[%clk 0:00:27.5]} 31. Nf6+ {[%clk 0:00:28.5]} 31... Nxf6 {[%clk
0:00:27.1]} 32. exf6 {[%clk 0:00:29.4]} 32... Rd5 {[%clk 0:00:26.5]} 33. Kf3
{[%clk 0:00:21]} 33... Kf7 {[%clk 0:00:26.6]} 34. Ke4 {[%clk 0:00:19.1]} 34...
Rxd3 {[%clk 0:00:22.1]} 35. cxd3 {[%clk 0:00:19.3]} 35... a6 {[%clk 0:00:22.1]}
36. Be5 {[%clk 0:00:18.7]} 36... b5 {[%clk 0:00:22.3]} 37. a5 {[%clk 0:00:17.3]}
37... Bh6 {[%clk 0:00:17.7]} 38. h4 {[%clk 0:00:14.9]} 38... Bc1 {[%clk
0:00:15.5]} 39. d4 {[%clk 0:00:12]} 39... c4 {[%clk 0:00:12.3]} 40. d5 {[%clk
0:00:12.1]} 40... exd5+ {[%clk 0:00:12.5]} 41. Kxd5 {[%clk 0:00:12.3]} 41... Bd2
{[%clk 0:00:12.8]} 42. g5 {[%clk 0:00:10.5]} 42... Bxa5 {[%clk 0:00:12.4]} 43.
Kc6 {[%clk 0:00:09.2]} 43... Bd2 {[%clk 0:00:12.5]} 44. Kb6 {[%clk 0:00:08.7]}
44... b4 {[%clk 0:00:12.9]} 45. Kxa6 {[%clk 0:00:07.4]} 45... c3 {[%clk
0:00:13.3]} 46. bxc3 {[%clk 0:00:07.6]} 46... bxc3 {[%clk 0:00:13.7]} 47. Kb5
{[%clk 0:00:05.9]} 47... c2 {[%clk 0:00:14.1]} 48. Bb2 {[%clk 0:00:06.2]} 48...
c1=Q {[%clk 0:00:13.9]} 49. Bxc1 {[%clk 0:00:05.8]} 49... Bxc1 {[%clk
0:00:14.5]} 50. Kc4 {[%clk 0:00:06.4]} 50... Bd2 {[%clk 0:00:15.1]} 51. Kd3
{[%clk 0:00:06.2]} 51... Be1 {[%clk 0:00:15.8]} 52. Ke4 {[%clk 0:00:06.6]} 52...
Bxh4 {[%clk 0:00:15.8]} 53. Kf4 {[%clk 0:00:07.2]} 53... Be1 {[%clk 0:00:15.8]}
54. Kg4 {[%clk 0:00:07.1]} 54... Bd2 {[%clk 0:00:16.1]} 55. Kh4 {[%clk
0:00:07.2]} 55... h5 {[%clk 0:00:16.3]} 56. gxh6 {[%clk 0:00:04.8]} 56... Bxh6
{[%clk 0:00:16.3]} 0-1

[Event "*** Titled Tuesday Blitz"]
[Site "Chess.com"]
[Date "2020.05.19"]
[Round "8"]
[White "santosalberto1987"]
[Black "DaggiGretarsson"]
[Result "0-1"]
[WhiteElo "2483"]
[BlackElo "2622"]
[TimeControl "180+1"]
[EndTime "13:37:20 PDT"]
[Termination "DaggiGretarsson won on time"]

1. e4 {[%clk 0:03:00]} 1... g6 {[%clk 0:02:59.4]} 2. d4 {[%clk 0:02:59.7]} 2...
Bg7 {[%clk 0:02:59.2]} 3. Nc3 {[%clk 0:03:00.1]} 3... d6 {[%clk 0:02:59.1]} 4.
Be3 {[%clk 0:02:58.5]} 4... a6 {[%clk 0:02:58.9]} 5. Nf3 {[%clk 0:02:57]} 5...
b5 {[%clk 0:02:58.1]} 6. Bd3 {[%clk 0:02:56.7]} 6... Nd7 {[%clk 0:02:57.7]} 7.
d5 {[%clk 0:02:56.4]} 7... Bb7 {[%clk 0:02:53.9]} 8. Nd4 {[%clk 0:02:56.1]} 8...
Ngf6 {[%clk 0:02:45.8]} 9. f3 {[%clk 0:02:56.1]} 9... Ne5 {[%clk 0:02:33.3]} 10.
Qd2 {[%clk 0:02:53.8]} 10... c5 {[%clk 0:02:31.1]} 11. dxc6 {[%clk 0:02:53.4]}
11... Nxc6 {[%clk 0:02:30.8]} 12. g4 {[%clk 0:02:39.1]} 12... h5 {[%clk
0:02:28.6]} 13. g5 {[%clk 0:02:32]} 13... Nd7 {[%clk 0:02:28.1]} 14. Nxc6 {[%clk
0:02:24.6]} 14... Bxc6 {[%clk 0:02:28.1]} 15. O-O-O {[%clk 0:02:23.6]} 15... Qa5
{[%clk 0:02:01]} 16. Kb1 {[%clk 0:02:22.3]} 16... Bxc3 {[%clk 0:01:51.4]} 17.
Qxc3 {[%clk 0:02:23.2]} 17... Qxc3 {[%clk 0:01:51.2]} 18. bxc3 {[%clk
0:02:24.1]} 18... O-O {[%clk 0:01:47.1]} 19. f4 {[%clk 0:01:57]} 19... Rfc8
{[%clk 0:01:43.1]} 20. Rhf1 {[%clk 0:01:48.4]} 20... Bb7 {[%clk 0:01:41.7]} 21.
Kb2 {[%clk 0:01:45.2]} 21... Nc5 {[%clk 0:01:40.5]} 22. Bd4 {[%clk 0:01:21.4]}
22... Na4+ {[%clk 0:01:19.3]} 23. Kb3 {[%clk 0:01:20.4]} 23... d5 {[%clk
0:01:19.3]} 24. e5 {[%clk 0:01:16.2]} 24... e6 {[%clk 0:01:19.1]} 25. Rf3 {[%clk
0:01:06.7]} 25... Rc7 {[%clk 0:01:17.4]} 26. Bf1 {[%clk 0:01:06.2]} 26... Bc6
{[%clk 0:01:13.2]} 27. a3 {[%clk 0:01:03]} 27... Rb7 {[%clk 0:01:04.6]} 28. Be2
{[%clk 0:00:49.8]} 28... Rc8 {[%clk 0:01:02.5]} 29. Bf1 {[%clk 0:00:49.7]} 29...
Bd7 {[%clk 0:01:02.1]} 30. Bd3 {[%clk 0:00:42.1]} 30... a5 {[%clk 0:00:46.1]}
31. Be2 {[%clk 0:00:36.6]} 31... Nb6 {[%clk 0:00:42.2]} 32. Rff1 {[%clk
0:00:23.8]} 32... Rcb8 {[%clk 0:00:29.2]} 33. Ka2 {[%clk 0:00:20.7]} 33... Nc8
{[%clk 0:00:28.8]} 34. Rb1 {[%clk 0:00:19.5]} 34... Ne7 {[%clk 0:00:28.6]} 35.
Rb2 {[%clk 0:00:16.6]} 35... Nc6 {[%clk 0:00:25.9]} 36. Rfb1 {[%clk 0:00:15.1]}
36... b4 {[%clk 0:00:23.8]} 37. Bc5 {[%clk 0:00:10]} 37... Ra8 {[%clk
0:00:22.6]} 38. cxb4 {[%clk 0:00:09.5]} 38... axb4 {[%clk 0:00:22.3]} 39. Bxb4
{[%clk 0:00:10.4]} 39... Nd4 {[%clk 0:00:21.2]} 40. Bd1 {[%clk 0:00:09.5]} 40...
Bb5 {[%clk 0:00:19.9]} 41. c3 {[%clk 0:00:07.4]} 41... Bc4+ {[%clk 0:00:19.8]}
42. Ka1 {[%clk 0:00:08]} 42... Rxb4 {[%clk 0:00:18.9]} 43. Rxb4 {[%clk
0:00:04.6]} 43... Rxa3+ {[%clk 0:00:18.9]} 44. Kb2 {[%clk 0:00:05.1]} 44... Ra2+
{[%clk 0:00:19.2]} 45. Kc1 {[%clk 0:00:05.5]} 45... Nf5 {[%clk 0:00:18.2]} 46.
R4b2 {[%clk 0:00:04.1]} 46... Ra3 {[%clk 0:00:17.7]} 47. Kd2 {[%clk 0:00:04.7]}
47... d4 {[%clk 0:00:17.4]} 48. cxd4 {[%clk 0:00:03.7]} 48... Rd3+ {[%clk
0:00:17.1]} 49. Ke1 {[%clk 0:00:03.9]} 49... Nxd4 {[%clk 0:00:16.5]} 50. Rb4
{[%clk 0:00:02]} 50... Bd5 {[%clk 0:00:16.1]} 0-1

[Event "*** Titled Tuesday Blitz"]
[Site "Chess.com"]
[Date "2020.05.19"]
[Round "8"]
[White "Chess_Boxer123"]
[Black "kasparicy"]
[Result "1/2-1/2"]
[WhiteElo "2550"]
[BlackElo "2416"]
[TimeControl "180+1"]
[EndTime "13:37:20 PDT"]
[Termination "Game drawn - insufficient material"]

1. Nf3 {[%clk 0:03:00.9]} 1... f5 {[%clk 0:02:49.7]} 2. d4 {[%clk 0:02:53.2]}
2... Nf6 {[%clk 0:02:49.3]} 3. Bf4 {[%clk 0:02:53.4]} 3... e6 {[%clk 0:02:49.8]}
4. e3 {[%clk 0:02:53.5]} 4... c5 {[%clk 0:02:48.4]} 5. Nbd2 {[%clk 0:02:53.4]}
5... b6 {[%clk 0:02:43]} 6. c3 {[%clk 0:02:51.4]} 6... Bb7 {[%clk 0:02:43.2]} 7.
h3 {[%clk 0:02:51.6]} 7... Be7 {[%clk 0:02:43.4]} 8. Bd3 {[%clk 0:02:51.5]} 8...
O-O {[%clk 0:02:43.8]} 9. Qe2 {[%clk 0:02:52]} 9... d6 {[%clk 0:02:44.2]} 10. e4
{[%clk 0:02:49.8]} 10... fxe4 {[%clk 0:02:36.2]} 11. Nxe4 {[%clk 0:02:49.3]}
11... Nxe4 {[%clk 0:02:00.8]} 12. Bxe4 {[%clk 0:02:48]} 12... d5 {[%clk
0:02:01.2]} 13. Bxh7+ {[%clk 0:01:37.6]} 13... Kxh7 {[%clk 0:02:02.1]} 14. Be5
{[%clk 0:01:36.1]} 14... Nc6 {[%clk 0:01:57.8]} 15. O-O-O {[%clk 0:01:32.5]}
15... cxd4 {[%clk 0:01:55.8]} 16. cxd4 {[%clk 0:01:32.1]} 16... Bf6 {[%clk
0:01:54.2]} 17. h4 {[%clk 0:01:30]} 17... Rc8 {[%clk 0:01:53.4]} 18. Kb1 {[%clk
0:01:30.1]} 18... Bxe5 {[%clk 0:01:35.7]} 19. Ng5+ {[%clk 0:01:26.3]} 19... Kg8
{[%clk 0:01:35.3]} 20. Nxe6 {[%clk 0:01:23.4]} 20... Qf6 {[%clk 0:01:28.2]} 21.
Nxf8 {[%clk 0:01:23.4]} 21... Bxd4 {[%clk 0:00:46.7]} 22. Qe6+ {[%clk
0:01:20.9]} 22... Qxe6 {[%clk 0:00:46.7]} 23. Nxe6 {[%clk 0:01:21.8]} 23... Bxf2
{[%clk 0:00:44.8]} 24. Rhf1 {[%clk 0:01:20.3]} 24... Bxh4 {[%clk 0:00:43.3]} 25.
Rxd5 {[%clk 0:01:20.5]} 25... Nb4 {[%clk 0:00:41.4]} 26. Rd4 {[%clk 0:01:19.2]}
26... Be7 {[%clk 0:00:23.3]} 27. a3 {[%clk 0:01:18.2]} 27... Ba6 {[%clk
0:00:16.3]} 28. Re1 {[%clk 0:01:16.4]} 28... Bd3+ {[%clk 0:00:16.1]} 29. Rxd3
{[%clk 0:01:16.7]} 29... Nxd3 {[%clk 0:00:16.3]} 30. Re3 {[%clk 0:01:16.7]}
30... Nc5 {[%clk 0:00:15.3]} 31. Nxg7 {[%clk 0:01:15.3]} 31... Bf6 {[%clk
0:00:14.7]} 32. Nf5 {[%clk 0:01:13.8]} 32... Na4 {[%clk 0:00:14.8]} 33. Re6
{[%clk 0:00:59.7]} 33... Bxb2 {[%clk 0:00:13.2]} 34. Ne7+ {[%clk 0:00:57.5]}
34... Kf7 {[%clk 0:00:13.3]} 35. Re4 {[%clk 0:00:58]} 35... Rc1+ {[%clk
0:00:12.2]} 36. Ka2 {[%clk 0:00:57.3]} 36... Rg1 {[%clk 0:00:12.2]} 37. Kb3
{[%clk 0:00:58.2]} 37... Bf6 {[%clk 0:00:11.5]} 38. Rxa4 {[%clk 0:00:54]} 38...
Bxe7 {[%clk 0:00:11.5]} 39. Rxa7 {[%clk 0:00:54.6]} 39... Rxg2 {[%clk
0:00:12.1]} 40. a4 {[%clk 0:00:55.2]} 40... Rg5 {[%clk 0:00:10.8]} 41. Kc4
{[%clk 0:00:54.8]} 41... Rc5+ {[%clk 0:00:09.7]} 42. Kb3 {[%clk 0:00:54.2]}
42... Ke6 {[%clk 0:00:10.3]} 43. Rb7 {[%clk 0:00:53.9]} 43... Bd8 {[%clk
0:00:10.6]} 44. Rb8 {[%clk 0:00:53.9]} 44... Kd7 {[%clk 0:00:10.9]} 45. Rb7+
{[%clk 0:00:52.8]} 45... Kc6 {[%clk 0:00:10.9]} 46. Rh7 {[%clk 0:00:52.3]} 46...
Bc7 {[%clk 0:00:11.1]} 47. Rh6+ {[%clk 0:00:52.6]} 47... Bd6 {[%clk 0:00:11.6]}
48. Rg6 {[%clk 0:00:53]} 48... Rh5 {[%clk 0:00:11.2]} 49. Rf6 {[%clk 0:00:52.8]}
49... Kd5 {[%clk 0:00:11.2]} 50. Rg6 {[%clk 0:00:52.6]} 50... Rh3+ {[%clk
0:00:10.9]} 51. Kb2 {[%clk 0:00:51.8]} 51... Bc5 {[%clk 0:00:11.4]} 52. Rg4
{[%clk 0:00:51.1]} 52... Bd4+ {[%clk 0:00:11.4]} 53. Kc2 {[%clk 0:00:50.7]}
53... Kc4 {[%clk 0:00:12]} 54. Rg5 {[%clk 0:00:49.3]} 54... Rh2+ {[%clk
0:00:12.1]} 55. Kb1 {[%clk 0:00:48.9]} 55... Kb3 {[%clk 0:00:11.9]} 56. Kc1
{[%clk 0:00:48.7]} 56... Kxa4 {[%clk 0:00:11.4]} 57. Rd5 {[%clk 0:00:46.8]}
57... Bc5 {[%clk 0:00:11]} 58. Kd1 {[%clk 0:00:44.3]} 58... Kb3 {[%clk
0:00:11.2]} 59. Rd7 {[%clk 0:00:43.8]} 59... b5 {[%clk 0:00:11.1]} 60. Rb7
{[%clk 0:00:44]} 60... b4 {[%clk 0:00:11]} 61. Kc1 {[%clk 0:00:44.9]} 61... Be3+
{[%clk 0:00:10.6]} 62. Kd1 {[%clk 0:00:44.4]} 62... Rd2+ {[%clk 0:00:10.6]} 63.
Ke1 {[%clk 0:00:42.7]} 63... Rc2 {[%clk 0:00:10.8]} 64. Kd1 {[%clk 0:00:41]}
64... Bd4 {[%clk 0:00:11]} 65. Rxb4+ {[%clk 0:00:40.1]} 65... Kxb4 {[%clk
0:00:04.8]} 66. Kxc2 {[%clk 0:00:40]} 1/2-1/2

[Event "*** Titled Tuesday Blitz"]
[Site "Chess.com"]
[Date "2020.05.19"]
[Round "8"]
[White "PawnEatingZombie"]
[Black "powermove"]
[Result "1/2-1/2"]
[WhiteElo "2233"]
[BlackElo "1709"]
[TimeControl "180+1"]
[EndTime "13:37:20 PDT"]
[Termination "Game drawn by repetition"]

1. d4 {[%clk 0:02:57.1]} 1... Nf6 {[%clk 0:02:59.2]} 2. c4 {[%clk 0:02:55.9]}
2... c5 {[%clk 0:02:59.2]} 3. d5 {[%clk 0:02:55.8]} 3... b5 {[%clk 0:02:58.9]}
4. cxb5 {[%clk 0:02:56.7]} 4... a6 {[%clk 0:02:58.5]} 5. e3 {[%clk 0:02:57.6]}
5... g6 {[%clk 0:02:56]} 6. Nc3 {[%clk 0:02:57.7]} 6... Bg7 {[%clk 0:02:55.3]}
7. a4 {[%clk 0:02:58.2]} 7... O-O {[%clk 0:02:53.7]} 8. Nf3 {[%clk 0:02:58.7]}
8... Bb7 {[%clk 0:02:50.1]} 9. e4 {[%clk 0:02:56.7]} 9... e6 {[%clk 0:02:46.7]}
10. Be2 {[%clk 0:02:37.3]} 10... exd5 {[%clk 0:02:38.7]} 11. exd5 {[%clk
0:02:36.4]} 11... d6 {[%clk 0:02:29]} 12. O-O {[%clk 0:02:34]} 12... axb5 {[%clk
0:02:07.9]} 13. Bxb5 {[%clk 0:02:32.5]} 13... Nbd7 {[%clk 0:02:07.4]} 14. Bf4
{[%clk 0:02:30.5]} 14... Qc7 {[%clk 0:02:01.3]} 15. h3 {[%clk 0:02:24.1]} 15...
Rfe8 {[%clk 0:01:50.5]} 16. Qd2 {[%clk 0:01:59.1]} 16... Ne4 {[%clk 0:01:44.4]}
17. Nxe4 {[%clk 0:01:56.8]} 17... Rxe4 {[%clk 0:01:44.3]} 18. Ng5 {[%clk
0:01:47.8]} 18... Rb4 {[%clk 0:01:39.2]} 19. Rab1 {[%clk 0:01:32.6]} 19... Nb6
{[%clk 0:01:29.6]} 20. Rfe1 {[%clk 0:01:19.4]} 20... Nxd5 {[%clk 0:01:28.3]} 21.
Bg3 {[%clk 0:01:11.4]} 21... Bh6 {[%clk 0:01:19.2]} 22. f4 {[%clk 0:00:56.2]}
22... Rd4 {[%clk 0:01:00.3]} 23. Qc1 {[%clk 0:00:55.3]} 23... Nb4 {[%clk
0:00:52.8]} 24. Rd1 {[%clk 0:00:19]} 24... Na2 {[%clk 0:00:51.4]} 25. Qc2 {[%clk
0:00:16.7]} 25... Nb4 {[%clk 0:00:43.4]} 26. Qe2 {[%clk 0:00:11.4]} 26... Bxg5
{[%clk 0:00:40.4]} 27. fxg5 {[%clk 0:00:10.8]} 27... Re4 {[%clk 0:00:39.5]} 28.
Qf2 {[%clk 0:00:09.5]} 28... Qe7 {[%clk 0:00:33.7]} 29. Bxd6 {[%clk 0:00:07]}
29... Qxg5 {[%clk 0:00:31]} 30. Re1 {[%clk 0:00:02.6]} 30... Rxe1+ {[%clk
0:00:23.5]} 31. Rxe1 {[%clk 0:00:01.7]} 31... Rc8 {[%clk 0:00:22.5]} 32. Bc4
{[%clk 0:00:01.7]} 32... Bd5 {[%clk 0:00:19.9]} 33. Bf4 {[%clk 0:00:02]} 33...
Qf5 {[%clk 0:00:17.8]} 34. Bxd5 {[%clk 0:00:02]} 34... Qxd5 {[%clk 0:00:16.9]}
35. Qg3 {[%clk 0:00:01.3]} 35... Nd3 {[%clk 0:00:14.3]} 36. Rf1 {[%clk
0:00:01.7]} 36... Qd4+ {[%clk 0:00:13.3]} 37. Kh2 {[%clk 0:00:01.2]} 37... Nxf4
{[%clk 0:00:11.3]} 38. Qxf4 {[%clk 0:00:02.1]} 38... Qxf4+ {[%clk 0:00:10.8]}
39. Rxf4 {[%clk 0:00:03]} 39... Rb8 {[%clk 0:00:10.6]} 40. Rc4 {[%clk
0:00:02.9]} 40... Rxb2 {[%clk 0:00:09.6]} 41. Rxc5 {[%clk 0:00:03.3]} 41... Ra2
{[%clk 0:00:09.6]} 42. Ra5 {[%clk 0:00:03.2]} 42... h5 {[%clk 0:00:09]} 43. Ra7
{[%clk 0:00:03.2]} 43... Kg7 {[%clk 0:00:09]} 44. h4 {[%clk 0:00:03.4]} 44...
Ra3 {[%clk 0:00:08.3]} 45. g3 {[%clk 0:00:02.8]} 45... Ra2+ {[%clk 0:00:08.2]}
46. Kh3 {[%clk 0:00:03.1]} 46... Ra3 {[%clk 0:00:07.8]} 47. Kg2 {[%clk
0:00:03.2]} 47... Ra2+ {[%clk 0:00:07.9]} 48. Kf3 {[%clk 0:00:03.5]} 48... Ra3+
{[%clk 0:00:08.2]} 49. Kf4 {[%clk 0:00:03.7]} 49... Ra2 {[%clk 0:00:07.6]} 50.
Ke4 {[%clk 0:00:03.2]} 50... Ra3 {[%clk 0:00:07.4]} 51. Kf4 {[%clk 0:00:02.9]}
51... Ra2 {[%clk 0:00:07.7]} 52. Ke4 {[%clk 0:00:03.1]} 52... Ra3 {[%clk
0:00:08]} 53. Kf4 {[%clk 0:00:03.5]} 1/2-1/2

[Event "*** Titled Tuesday Blitz"]
[Site "Chess.com"]
[Date "2020.05.19"]
[Round "8"]
[White "Sibelephant"]
[Black "Gordima"]
[Result "1-0"]
[WhiteElo "3165"]
[BlackElo "2780"]
[TimeControl "180+1"]
[EndTime "13:37:21 PDT"]
[Termination "Sibelephant won on time"]

1. d4 {[%clk 0:03:00.1]} 1... Nf6 {[%clk 0:03:00.1]} 2. Nf3 {[%clk 0:03:00.5]}
2... d5 {[%clk 0:02:59.9]} 3. Bg5 {[%clk 0:03:00.7]} 3... c5 {[%clk 0:02:49.6]}
4. e3 {[%clk 0:03:00.5]} 4... Nc6 {[%clk 0:02:46.8]} 5. Nbd2 {[%clk 0:02:53.9]}
5... cxd4 {[%clk 0:02:37.9]} 6. exd4 {[%clk 0:02:53.3]} 6... Bg4 {[%clk
0:02:37]} 7. c3 {[%clk 0:02:52.7]} 7... e6 {[%clk 0:02:20.8]} 8. Bd3 {[%clk
0:02:52.6]} 8... Be7 {[%clk 0:02:20.1]} 9. O-O {[%clk 0:02:52.3]} 9... Bh5
{[%clk 0:02:17.7]} 10. Qb3 {[%clk 0:02:35.9]} 10... Qc7 {[%clk 0:02:08.8]} 11.
Rae1 {[%clk 0:02:27]} 11... O-O {[%clk 0:02:07.7]} 12. Ne5 {[%clk 0:02:20.4]}
12... Bd6 {[%clk 0:01:54.9]} 13. f4 {[%clk 0:02:11]} 13... Bg6 {[%clk
0:01:55.1]} 14. Bxg6 {[%clk 0:01:54]} 14... hxg6 {[%clk 0:01:56]} 15. Qd1 {[%clk
0:01:35.8]} 15... Rfb8 {[%clk 0:01:53.8]} 16. Qf3 {[%clk 0:01:28.2]} 16... Ne7
{[%clk 0:01:44.6]} 17. Qh3 {[%clk 0:01:20.5]} 17... Re8 {[%clk 0:01:34.8]} 18.
Bxf6 {[%clk 0:01:04.5]} 18... gxf6 {[%clk 0:01:34.8]} 19. Nxf7 {[%clk
0:01:02.4]} 19... Kxf7 {[%clk 0:01:25.4]} 20. Qh7+ {[%clk 0:00:57.1]} 20... Kf8
{[%clk 0:01:23.3]} 21. Rxe6 {[%clk 0:00:49.6]} 21... Ng8 {[%clk 0:01:23.3]} 22.
Rxe8+ {[%clk 0:00:44.2]} 22... Rxe8 {[%clk 0:01:24.2]} 23. Qxg6 {[%clk
0:00:44.5]} 23... Bxf4 {[%clk 0:01:19.9]} 24. Nf3 {[%clk 0:00:45]} 24... Qe7
{[%clk 0:01:04.1]} 25. Qg4 {[%clk 0:00:30.4]} 25... Qe4 {[%clk 0:01:03.1]} 26.
Qh5 {[%clk 0:00:20.6]} 26... Re7 {[%clk 0:00:59.6]} 27. Nh4 {[%clk 0:00:18.1]}
27... Rg7 {[%clk 0:00:33.9]} 28. Kh1 {[%clk 0:00:05.2]} 28... Ne7 {[%clk
0:00:25.5]} 29. Qh8+ {[%clk 0:00:04.2]} 29... Kf7 {[%clk 0:00:23.1]} 30. Qh5+
{[%clk 0:00:04.8]} 30... Ke6 {[%clk 0:00:21.5]} 31. Nf3 {[%clk 0:00:04.1]} 31...
Kd7 {[%clk 0:00:18.7]} 32. Re1 {[%clk 0:00:04.5]} 32... Qg6 {[%clk 0:00:12.3]}
33. Qh3+ {[%clk 0:00:03]} 33... Qg4 {[%clk 0:00:11.8]} 34. Qxg4+ {[%clk
0:00:03.5]} 34... Rxg4 {[%clk 0:00:12.7]} 35. g3 {[%clk 0:00:04.1]} 35... Bd6
{[%clk 0:00:12.2]} 36. Kg2 {[%clk 0:00:04.2]} 36... Rg8 {[%clk 0:00:08.3]} 37.
Kf2 {[%clk 0:00:03.9]} 37... b5 {[%clk 0:00:07.5]} 38. a3 {[%clk 0:00:03.4]}
38... a5 {[%clk 0:00:07.3]} 39. Nd2 {[%clk 0:00:03.7]} 39... b4 {[%clk
0:00:06.4]} 40. axb4 {[%clk 0:00:04.3]} 40... axb4 {[%clk 0:00:07.3]} 41. Ke2
{[%clk 0:00:04.6]} 41... bxc3 {[%clk 0:00:07]} 42. bxc3 {[%clk 0:00:05.3]} 42...
Rc8 {[%clk 0:00:07.3]} 43. Kd3 {[%clk 0:00:05.4]} 43... Rh8 {[%clk 0:00:07.9]}
44. Re2 {[%clk 0:00:05.5]} 44... Nc8 {[%clk 0:00:04.9]} 45. Rf2 {[%clk
0:00:05.3]} 45... Be7 {[%clk 0:00:04.8]} 46. Nf1 {[%clk 0:00:04.9]} 46... Nd6
{[%clk 0:00:05.1]} 47. Ne3 {[%clk 0:00:05.4]} 47... Ke6 {[%clk 0:00:05.6]} 48.
Ra2 {[%clk 0:00:06]} 48... Rc8 {[%clk 0:00:04.9]} 49. Re2 {[%clk 0:00:05.8]}
49... Ne4 {[%clk 0:00:04.2]} 50. c4 {[%clk 0:00:06.1]} 50... f5 {[%clk
0:00:02.9]} 51. Nxd5 {[%clk 0:00:06]} 51... Bd6 {[%clk 0:00:02.2]} 52. g4 {[%clk
0:00:06.6]} 1-0